bitfinex/quotes_SOLUSD_20250912
["timestamp","ask_amount","ask_price","bid_price","bid_amount"]
[1757650395603,4.9707716,234.7,234.62,0.46]
[1757650396328,0.71,234.7,234.62,0.46]
[1757650397414,0.71,234.7,234.63,30.26202957]
[1757650400632,0.71,234.7,234.63,30.69202957]
[1757650400945,0.71,234.73,234.64,13.59559401]
[1757650401243,0.71,234.73,234.65,35.19]
[1757650401547,4.2597796,234.76,234.68,26.0]
[1757650401722,0.71,234.77,234.68,26.43]
[1757650402227,4.31916727,234.79,234.69,14.02559401]
[1757650402437,0.71,234.78,234.7,39.0207075]
[1757650402960,4.96933839,234.78,234.7,39.0207075]
[1757650403249,0.71,234.77,234.7,39.02074697]
[1757650406539,0.06,234.79,234.71,0.43]
[1757650406743,0.74,234.79,234.71,0.43]
[1757650407051,0.74,234.79,234.71,4.69042659]
[1757650411863,4.99913116,234.79,234.71,4.69042659]
[1757650413463,0.74,234.79,234.71,4.69042659]
[1757650414732,0.68,234.78,234.71,4.26042659]
[1757650415745,0.68,234.77,234.7,39.45074166]
[1757650416053,0.68,234.77,234.7,39.02074166]
[1757650416352,0.06,234.79,234.74,39.59559401]
[1757650416535,0.06,234.79,234.76,13.59559401]
[1757650417037,0.06,234.79,234.77,0.43]
[1757650417970,0.68,234.78,234.71,35.15]
[1757650418140,0.68,234.78,234.71,34.72]
[1757650418536,0.68,234.78,234.71,38.9805347]
[1757650418737,0.68,234.78,234.71,35.15]
[1757650419850,4.259488,234.77,234.71,34.72]
[1757650420056,4.939488,234.77,234.71,34.72]
[1757650425657,4.31929399,234.79,234.71,34.72]
[1757650425857,0.68,234.78,234.71,34.72]
[1757650426867,3.04575565,234.75,234.66,13.59559401]
[1757650427053,0.68,234.74,234.66,34.7]
[1757650427260,3.52775386,234.78,234.68,13.59559401]
[1757650427471,6.69847282,234.77,234.69,0.43]
[1757650427653,3.17071896,234.76,234.69,0.43]
[1757650427849,4.2598509,234.75,234.69,0.43]
[1757650428266,7.78740186,234.77,234.69,0.43]
[1757650428462,3.17063166,234.76,234.69,0.43]
[1757650429353,4.2598509,234.75,234.69,0.43]
[1757650431974,4.2598509,234.75,234.68,13.59559401]
[1757650432363,0.68,234.74,234.66,34.7]
[1757650432549,6.01900139,234.73,234.66,34.7]
[1757650432753,0.68,234.72,234.66,34.7]
[1757650433170,2.84775386,234.73,234.66,34.7]
[1757650433486,4.26075841,234.7,234.66,26.0]
[1757650433660,4.94075841,234.7,234.66,26.0]
[1757650434968,4.26075841,234.7,234.66,26.0]
[1757650435166,0.68,234.69,234.66,26.0]
[1757650435484,4.26075841,234.7,234.66,26.0]
[1757650435681,4.94075841,234.7,234.66,26.0]
[1757650435995,3.04575565,234.67,234.65,0.03]
[1757650436484,0.68,234.66,234.65,0.03]
[1757650436881,4.9414847,234.66,234.65,0.03]
[1757650439168,8.11722638,234.66,234.65,0.03]
[1757650439370,3.17574168,234.66,234.65,0.03]
[1757650439580,0.68,234.69,234.65,0.03]
[1757650439781,3.17549254,234.68,234.65,0.03]
[1757650439974,4.26093996,234.69,234.65,0.03]
[1757650440177,6.71445495,234.68,234.65,0.03]
[1757650440376,0.68,234.68,234.65,0.03]
[1757650440574,4.26093996,234.69,234.65,0.03]
[1757650440768,0.68,234.67,234.65,0.03]
[1757650441589,4.94134696,234.67,234.65,0.03]
[1757650442373,4.26134696,234.67,234.65,0.03]
[1757650442574,0.68,234.66,234.65,0.03]
[1757650443098,0.68,234.68,234.65,0.03]
[1757650443284,0.68,234.66,234.65,0.03]
[1757650443481,6.71342788,234.69,234.65,0.03]
[1757650443667,0.68,234.66,234.65,0.03]
[1757650445086,4.9414847,234.66,234.65,0.03]
[1757650445773,2.85735087,234.69,234.65,0.03]
[1757650446092,0.68,234.66,234.65,0.03]
[1757650447296,4.9414847,234.66,234.65,0.03]
[1757650447484,14.01784406,234.66,234.62,0.03]
[1757650447679,3.04575565,234.63,234.62,0.03]
[1757650448069,3.72575565,234.63,234.62,0.03]
[1757650448672,0.68,234.63,234.62,0.03]
[1757650449206,4.94202957,234.63,234.62,0.03]
[1757650450611,7.98778522,234.63,234.62,0.03]
[1757650450905,7.98778522,234.63,234.61,0.1]
[1757650450906,3.18791722,234.62,234.61,1e-08]
[1757650451079,9.21543017,234.62,234.61,1e-08]
[1757650451276,14.1576414,234.62,234.61,1e-08]
[1757650451489,11.30165504,234.62,234.61,1e-08]
[1757650451697,14.1576414,234.62,234.61,1e-08]
[1757650453041,48.8176414,234.62,234.61,1e-08]
[1757650453899,14.1576414,234.62,234.61,1e-08]
[1757650454076,48.8176414,234.62,234.61,1e-08]
[1757650455406,48.7976414,234.62,234.61,1e-08]
[1757650456098,11.11188575,234.62,234.61,1e-08]
[1757650456307,48.7976414,234.62,234.61,1e-08]
[1757650456914,45.75188575,234.62,234.61,1e-08]
[1757650457087,48.7976414,234.62,234.61,1e-08]
[1757650457898,14.1576414,234.62,234.61,1e-08]
[1757650458114,48.7976414,234.62,234.61,1e-08]
[1757650459224,14.1576414,234.62,234.61,1e-08]
[1757650459709,45.75188575,234.62,234.61,1e-08]
[1757650460112,11.11188575,234.62,234.61,1e-08]
[1757650460319,14.1576414,234.62,234.61,1e-08]
[1757650460499,48.7976414,234.62,234.61,1e-08]
[1757650461307,48.65547983,234.62,234.61,1e-08]
[1757650461486,10.96972418,234.62,234.61,1e-08]
[1757650461686,45.60972418,234.62,234.61,1e-08]
[1757650462384,10.28972418,234.62,234.61,1e-08]
[1757650462696,45.78943107,234.62,234.61,1e-08]
[1757650462893,45.58920191,234.62,234.61,1e-08]
[1757650463115,48.63495756,234.62,234.61,1e-08]
[1757650463987,45.58920191,234.62,234.61,1e-08]
[1757650464806,10.94920191,234.62,234.61,1e-08]
[1757650465115,42.74367542,234.62,234.61,1e-08]
[1757650465313,10.94920191,234.62,234.61,1e-08]
[1757650465533,42.06367542,234.62,234.61,1e-08]
[1757650466429,4.26221123,234.62,234.61,1e-08]
[1757650466602,38.90221123,234.62,234.61,1e-08]
[1757650466799,42.0650637,234.62,234.61,1e-08]
[1757650466994,42.0450637,234.62,234.61,1e-08]
[1757650467205,0.06,234.67,234.61,0.46000001]
[1757650467414,3.16347238,234.66,234.61,0.46000001]
[1757650467621,3.16347238,234.65,234.62,0.46]
[1757650467821,3.16347238,234.66,234.62,0.46]
[1757650468000,3.16347238,234.65,234.62,0.46]
[1757650469198,4.26184158,234.65,234.62,0.46]
[1757650470093,3.82567671,234.64,234.61,1e-08]
[1757650470320,9.06001496,234.63,234.61,1e-08]
[1757650470508,3.16714784,234.62,234.61,1e-08]
[1757650470705,2.84711147,234.64,234.61,0.49000001]
[1757650470903,3.16717211,234.63,234.61,0.03000001]
[1757650471116,2.84711147,234.64,234.61,0.03000001]
[1757650471323,3.16848549,234.63,234.61,0.03000001]
[1757650471521,2.85160478,234.64,234.61,0.03000001]
[1757650471705,4.32184158,234.65,234.61,0.03000001]
[1757650471919,3.16832563,234.64,234.61,0.03000001]
[1757650472103,0.72,234.65,234.61,0.03000001]
[1757650472422,6.68014144,234.64,234.61,0.03000001]
[1757650472630,3.16868045,234.63,234.61,0.03000001]
[1757650472930,6.02123651,234.62,234.61,0.03000001]
[1757650473114,6.68123651,234.62,234.61,0.03000001]
[1757650474316,10.94344774,234.62,234.61,0.03000001]
[1757650477607,11.08560931,234.62,234.61,0.03000001]
[1757650477808,14.13136496,234.62,234.61,0.03000001]
[1757650478336,48.73136496,234.62,234.61,0.03000001]
[1757650480034,144.83775558,234.61,234.6,1e-08]
[1757650480226,153.90474774,234.61,234.58,0.03]
[1757650480420,6.76260158,234.59,234.58,0.03]
[1757650480626,47.38383809,234.59,234.58,0.03]
[1757650480930,44.46915373,234.59,234.58,0.03]
[1757650481915,40.62123651,234.59,234.58,0.03]
[1757650482128,11.08615437,234.59,234.58,0.03]
[1757650482315,10.2839928,234.59,234.58,0.03]
[1757650483725,6.02123651,234.59,234.58,0.49]
[1757650484109,6.02123651,234.59,234.58,0.03]
[1757650485436,0.06,234.65,234.58,0.49]
[1757650485642,6.03680692,234.64,234.58,0.49]
[1757650485950,6.03680692,234.63,234.58,0.49]
[1757650486252,6.03710075,234.62,234.59,0.46]
[1757650486446,4.3216903,234.65,234.59,0.46]
[1757650486621,6.03756572,234.64,234.59,0.46]
[1757650486812,6.03756572,234.63,234.59,0.46]
[1757650487017,6.03756572,234.62,234.6,0.46]
[1757650487233,4.3216903,234.65,234.6,0.46]
[1757650487432,6.03879268,234.64,234.58,0.03]
[1757650487631,6.03879268,234.63,234.61,0.46]
[1757650487844,6.03879268,234.62,234.58,0.03]
[1757650488144,3.17906519,234.61,234.58,0.03]
[1757650488332,0.06,234.65,234.59,0.46]
[1757650488538,6.0401901,234.64,234.59,0.46]
[1757650488728,6.0401901,234.63,234.59,0.46]
[1757650488929,6.0401901,234.62,234.58,0.03]
[1757650489137,3.17906455,234.61,234.6,0.46]
[1757650489325,6.04090636,234.61,234.6,0.46]
[1757650489947,6.04090636,234.61,234.59,0.03]
[1757650490139,0.06,234.64,234.59,0.03]
[1757650490444,3.18073006,234.63,234.6,0.46]
[1757650490645,0.06,234.64,234.61,0.46]
[1757650490847,3.18039138,234.63,234.61,0.46]
[1757650491038,0.06,234.64,234.61,0.46]
[1757650491233,3.18039122,234.63,234.62,0.46]
[1757650492251,6.04393384,234.63,234.61,26.0]
[1757650492431,4.32185332,234.64,234.61,26.0]
[1757650492622,6.04535582,234.63,234.61,26.0]
[1757650492944,4.98185332,234.64,234.61,26.0]
[1757650493126,6.04535598,234.63,234.61,26.0]
[1757650493446,4.32185332,234.64,234.61,26.0]
[1757650493741,6.04527439,234.63,234.61,26.46]
[1757650493947,0.06,234.64,234.62,0.46]
[1757650494149,6.04527407,234.63,234.62,0.46]
[1757650495048,0.06,234.64,234.62,0.46]
[1757650496142,0.06,234.64,234.61,26.0]
[1757650496325,0.06,234.64,234.61,26.46]
[1757650497053,0.06,234.64,234.61,26.0]
[1757650497637,3.86000117,234.63,234.61,26.0]
[1757650497831,0.68,234.63,234.61,26.0]
[1757650498047,6.04236,234.62,234.59,0.03]
[1757650498241,0.68,234.63,234.59,0.03]
[1757650498429,4.32191536,234.64,234.59,0.03]
[1757650498430,6.04233745,234.62,234.59,0.03]
[1757650498632,4.9420634,234.63,234.59,0.03]
[1757650498851,6.0423376,234.62,234.6,0.46]
[1757650499060,0.06,234.64,234.61,0.46]
[1757650500364,0.06,234.64,234.61,4.72239019]
[1757650500588,0.06,234.64,234.62,0.46]
[1757650500855,0.06,234.64,234.62,26.46]
[1757650501446,0.06,234.64,234.62,0.46]
[1757650502047,0.06,234.64,234.63,34.54]
[1757650504750,4.61518436,234.68,234.63,34.54]
[1757650504953,6.7192359,234.67,234.63,34.54]
[1757650505151,3.17858123,234.66,234.63,34.54]
[1757650505359,0.68,234.67,234.63,34.54]
[1757650505658,3.17846443,234.66,234.63,34.54]
[1757650505856,0.68,234.67,234.63,34.54]
[1757650506053,3.17846427,234.66,234.63,34.54]
[1757650506256,0.68,234.67,234.63,34.54]
[1757650506463,0.06,234.72,234.63,34.54]
[1757650506464,3.17822431,234.66,234.63,34.54]
[1757650506671,0.68,234.69,234.63,39.26198368]
[1757650506882,3.17822431,234.68,234.67,26.0]
[1757650507174,0.06,234.72,234.67,60.98]
[1757650507375,0.06,234.72,234.67,60.52]
[1757650508054,0.06,234.72,234.68,0.46]
[1757650508254,0.06,234.72,234.67,60.52]
[1757650508575,0.06,234.72,234.67,60.98]
[1757650508743,0.06,234.69,234.67,60.98]
[1757650509762,0.06,234.69,234.67,65.24125776]
[1757650511250,0.06,234.69,234.67,60.98]
[1757650513573,0.06,234.69,234.67,65.24128888]
[1757650513783,0.06,234.69,234.68,0.46]
[1757650514878,0.06,234.69,234.67,64.78128888]
[1757650515079,0.06,234.69,234.67,65.24128888]
[1757650516355,0.06,234.69,234.67,64.78128888]
[1757650516979,0.06,234.69,234.67,60.52]
[1757650517378,0.74,234.69,234.67,60.52]
[1757650517684,0.68,234.68,234.62,4.26220672]
[1757650517857,0.68,234.68,234.63,34.48]
[1757650518056,0.68,234.67,234.63,34.48]
[1757650518595,0.06,234.69,234.6,17.85801213]
[1757650518596,0.68,234.66,234.6,17.85801213]
[1757650518800,0.68,234.65,234.64,26.0]
[1757650519097,0.68,234.65,234.64,34.46]
[1757650519472,0.68,234.67,234.64,34.46]
[1757650519777,0.68,234.66,234.64,34.46]
[1757650520784,0.06,234.69,234.67,26.0]
[1757650520982,0.06,234.69,234.68,34.46]
[1757650525190,0.74,234.69,234.68,34.46]
[1757650525878,0.74,234.69,234.66,26.0]
[1757650526080,0.68,234.68,234.67,34.44]
[1757650526591,0.68,234.68,234.67,34.47]
[1757650526980,0.06,234.69,234.67,34.47]
[1757650528901,0.06,234.69,234.67,38.73128133]
[1757650529207,0.06,234.69,234.68,0.46]
[1757650530204,0.74,234.69,234.67,0.03]
[1757650531085,6.03476296,234.68,234.67,0.03]
[1757650531400,6.03483708,234.68,234.67,0.03]
[1757650531600,8.66572075,234.68,234.67,0.03]
[1757650531972,8.66572075,234.68,234.64,0.03]
[1757650532172,6.21236837,234.66,234.64,0.03]
[1757650532383,6.03483708,234.65,234.64,0.03]
[1757650532582,6.71483708,234.65,234.64,0.03]
[1757650533588,10.97650339,234.65,234.64,0.03]
[1757650535200,12.92738706,234.65,234.64,0.03]
[1757650539496,13.06954863,234.65,234.64,0.03]
[1757650540905,11.11866496,234.65,234.64,0.03]
[1757650541087,13.06954863,234.65,234.64,0.03]
[1757650541793,10.29650339,234.65,234.64,0.03]
[1757650542003,10.97650339,234.65,234.64,0.03]
[1757650543877,12.92738706,234.65,234.64,0.03]
[1757650544209,12.92740612,234.65,234.64,0.03]
[1757650545685,12.92684096,234.65,234.64,0.03]
[1757650545909,13.06900253,234.65,234.64,0.03]
[1757650546488,11.11811886,234.65,234.64,0.03]
[1757650546806,13.06900253,234.65,234.64,0.03]
[1757650548015,13.06770145,234.65,234.64,0.03]
[1757650548389,14.16667579,234.65,234.64,0.03]
[1757650549610,14.16508456,234.65,234.64,0.03]
[1757650550490,11.11522655,234.65,234.64,0.03]
[1757650552491,10.97306498,234.65,234.64,0.03]
[1757650552696,8.11579992,234.65,234.64,0.03]
[1757650553098,10.97306498,234.65,234.64,0.03]
[1757650553296,8.11579992,234.65,234.64,0.03]
[1757650553499,8.11463011,234.65,234.64,0.03]
[1757650553700,10.97189517,234.65,234.64,0.03]
[1757650553899,8.11463011,234.65,234.64,0.03]
[1757650554215,10.97189517,234.65,234.64,0.03]
[1757650555328,14.16391475,234.65,234.64,0.03]
[1757650556012,11.11405674,234.65,234.64,0.03]
[1757650556311,14.16391475,234.65,234.64,0.03]
[1757650557103,0.14216157,234.64,234.59,0.03]
[1757650557305,0.14216157,234.62,234.59,0.03]
[1757650557495,6.03022886,234.61,234.59,0.03]
[1757650557700,2.85726506,234.61,234.59,0.03]
[1757650557932,2.85726506,234.61,234.6,0.49]
[1757650558216,10.2923486,234.66,234.6,0.49]
[1757650558446,4.26184793,234.64,234.6,0.49]
[1757650558793,3.17390941,234.63,234.59,0.03]
[1757650559217,3.17390941,234.63,234.59,0.52]
[1757650559394,7.11911299,234.64,234.59,0.52]
[1757650559605,3.1743796,234.63,234.59,0.52]
[1757650559809,7.11911299,234.64,234.59,0.52]
[1757650560026,3.1743796,234.63,234.59,0.52]
[1757650560323,14.91594931,234.65,234.59,0.52]
[1757650560501,6.03192672,234.64,234.59,0.52]
[1757650560701,3.17480393,234.63,234.59,0.52]
[1757650560900,2.85712308,234.64,234.59,0.52]
[1757650561094,3.17480378,234.63,234.59,0.52]
[1757650561292,4.26202957,234.63,234.59,0.52]
[1757650561525,7.11915265,234.63,234.59,0.03]
[1757650561712,4.26202957,234.63,234.6,0.49]
[1757650561895,7.11915265,234.63,234.59,0.03]
[1757650562096,4.26202957,234.63,234.59,0.03]
[1757650562293,7.11915265,234.63,234.59,0.03]
[1757650562496,4.26202957,234.63,234.59,0.03]
[1757650562805,7.11915265,234.63,234.59,0.03]
[1757650563108,4.26202957,234.63,234.59,0.03]
[1757650563309,7.11915265,234.63,234.59,0.03]
[1757650563512,4.26202957,234.63,234.59,0.03]
[1757650563718,7.11915265,234.63,234.59,0.03]
[1757650564024,4.26202957,234.63,234.59,0.03]
[1757650564427,3.1764367,234.62,234.59,0.03]
[1757650564599,4.26202957,234.63,234.59,0.03]
[1757650564806,3.1764367,234.62,234.59,0.52]
[1757650565001,4.26185125,234.64,234.59,0.03]
[1757650565002,2.85857654,234.63,234.59,0.03]
[1757650565202,4.93185125,234.64,234.59,0.03]
[1757650565656,4.26185125,234.64,234.59,0.03]
[1757650565836,3.84653534,234.63,234.59,0.03]
[1757650566131,4.93212645,234.63,234.59,0.03]
[1757650566322,0.67,234.62,234.59,0.03]
[1757650566523,13.70384531,234.66,234.59,0.52]
[1757650566524,2.85914894,234.64,234.59,0.52]
[1757650566728,3.17703121,234.63,234.59,0.03]
[1757650566909,3.52909002,234.64,234.59,0.52]
[1757650567104,3.1770216,234.63,234.59,0.52]
[1757650567322,0.67,234.64,234.59,0.52]
[1757650567524,3.84761257,234.63,234.59,0.03]
[1757650567712,3.1777374,234.62,234.59,0.03]
[1757650567921,4.26221123,234.62,234.59,0.03]
[1757650568226,0.67,234.61,234.59,0.03]
[1757650568619,4.26221123,234.62,234.59,0.03]
[1757650568823,0.67,234.6,234.59,0.03]
[1757650569616,7.79361848,234.63,234.59,0.03]
[1757650569811,6.04097465,234.62,234.59,0.03]
[1757650570019,0.67,234.62,234.59,0.03]
[1757650570235,3.84955155,234.61,234.59,0.03]
[1757650570540,0.67,234.61,234.59,0.03]
[1757650570836,0.67,234.6,234.59,0.03]
[1757650572644,3.85232661,234.6,234.59,0.03]
[1757650573041,3.18232661,234.6,234.59,0.03]
[1757650574334,6.04987871,234.6,234.59,0.03]
[1757650575831,4.32148435,234.67,234.62,26.0]
[1757650575832,2.86880132,234.64,234.62,26.0]
[1757650576020,0.06,234.67,234.63,34.32]
[1757650576334,6.05579325,234.66,234.63,34.32]
[1757650576520,6.05579325,234.65,234.63,34.81]
[1757650576728,6.05579325,234.64,234.63,34.81]
[1757650576926,0.06,234.67,234.66,26.0]
[1757650577331,0.06,234.67,234.66,30.7514847]
[1757650577942,0.06,234.67,234.66,44.34707871]
[1757650581324,0.06,234.67,234.66,26.0]
[1757650581556,0.06,234.67,234.66,60.3]
[1757650584426,0.06,234.67,234.66,65.0514847]
[1757650584636,0.06,234.67,234.66,64.5614847]
[1757650589355,0.06,234.67,234.66,60.3]
[1757650589551,0.77,234.67,234.66,60.3]
[1757650589756,0.77,234.67,234.66,26.0]
[1757650590054,0.77,234.67,234.66,34.26]
[1757650596069,0.06,234.67,234.66,34.26]
[1757650596239,0.77,234.67,234.66,34.26]
[1757650597166,0.77,234.67,234.66,38.5214847]
[1757650597167,0.06,234.67,234.66,38.5214847]
[1757650597375,0.06,234.67,234.66,34.26]
[1757650598942,0.77,234.67,234.66,34.26]
[1757650600248,0.06,234.67,234.66,34.26]
[1757650603565,0.06,234.67,234.66,38.5214847]
[1757650604141,0.06,234.67,234.66,34.26]
[1757650604349,0.77,234.67,234.66,34.26]
[1757650604577,0.06,234.67,234.66,34.26]
[1757650605475,0.06,234.67,234.66,38.5214847]
[1757650605781,0.06,234.67,234.66,52.60707871]
[1757650607778,0.06,234.68,234.67,13.59559401]
[1757650607954,0.06,234.68,234.67,14.22775558]
[1757650608355,0.06,234.68,234.67,18.48905868]
[1757650609171,0.06,234.68,234.67,52.68905868]
[1757650610562,0.06,234.68,234.67,18.48905868]
[1757650610877,0.06,234.68,234.67,52.68905868]
[1757650612966,0.06,234.68,234.67,17.85689711]
[1757650613169,0.06,234.68,234.67,52.03689711]
[1757650614064,0.06,234.68,234.67,53.74087376]
[1757650614879,0.75,234.68,234.67,19.56087376]
[1757650615073,0.75,234.68,234.64,13.59559401]
[1757650615386,0.69,234.67,234.65,35.88419445]
[1757650615766,0.06,234.68,234.67,26.0]
[1757650615976,0.06,234.68,234.65,1.70419445]
[1757650616285,0.69,234.67,234.66,34.18]
[1757650616669,0.69,234.67,234.66,34.21]
[1757650618573,0.69,234.67,234.66,34.19]
[1757650621179,0.69,234.67,234.66,0.03]
[1757650621474,0.69,234.67,234.66,34.19]
[1757650629806,0.06,234.68,234.67,13.59559401]
[1757650630615,0.06,234.68,234.67,15.29964326]
[1757650631802,0.06,234.68,234.67,19.56094636]
[1757650634014,0.06,234.68,234.67,53.68094636]
[1757650634192,0.06,234.68,234.67,54.17094636]
[1757650636089,0.06,234.69,234.67,54.31310793]
[1757650636411,0.06,234.69,234.68,14.51170616]
[1757650636788,0.06,234.69,234.68,16.21546508]
[1757650636989,0.06,234.69,234.68,15.78935293]
[1757650638003,0.06,234.69,234.68,20.05047445]
[1757650638895,0.06,234.69,234.68,19.92233791]
[1757650640426,1e-08,234.7,234.69,0.14216157]
[1757650640588,1e-08,234.7,234.69,34.73216157]
[1757650640790,1e-08,234.7,234.69,35.15825556]
[1757650641008,0.69,234.81,234.72,39.59559401]
[1757650641311,0.85,234.79,234.76,39.59559401]
[1757650641509,0.85,234.79,234.76,73.69559401]
[1757650641915,0.75,234.77,234.76,73.69559401]
[1757650642310,0.75,234.77,234.76,77.95526345]
[1757650643225,0.75,234.77,234.76,41.29899015]
[1757650643390,0.75,234.77,234.76,75.37899015]
[1757650643589,0.75,234.77,234.76,1.70339614]
[1757650643789,0.75,234.77,234.76,60.08]
[1757650644514,0.75,234.77,234.67,4.2613031]
[1757650644717,0.71,234.76,234.69,1.70390407]
[1757650645014,0.71,234.75,234.7,34.08]
[1757650645319,0.71,234.74,234.7,34.08]
[1757650645616,0.71,234.73,234.7,34.08]
[1757650645791,0.71,234.72,234.7,34.08]
[1757650645996,0.71,234.71,234.66,4.34950734]
[1757650646192,0.71,234.7,234.67,34.08]
[1757650646391,0.71,234.69,234.67,34.08]
[1757650646591,0.71,234.68,234.67,34.08]
[1757650646989,0.06,234.77,234.7,26.0]
[1757650647242,0.71,234.74,234.71,34.08]
[1757650647530,0.71,234.73,234.71,34.08]
[1757650648494,0.71,234.73,234.72,4.26039536]
[1757650649706,0.71,234.73,234.71,34.08]
[1757650649707,0.71,234.73,234.71,38.34053116]
[1757650651295,0.71,234.72,234.71,38.34053116]
[1757650651604,0.71,234.72,234.7,2.85665695]
[1757650651914,0.06,234.73,234.71,60.06]
[1757650652417,0.71,234.72,234.71,60.06]
[1757650652924,0.71,234.72,234.71,34.06]
[1757650660431,0.71,234.72,234.66,4.34976488]
[1757650660651,3.56853366,234.71,234.66,0.03]
[1757650660843,2.85853366,234.7,234.66,0.03]
[1757650661014,0.71,234.71,234.66,0.03]
[1757650661214,0.71,234.69,234.66,0.03]
[1757650661839,0.71,234.69,234.67,34.04]
[1757650662119,0.71,234.68,234.67,34.04]
[1757650663956,4.97112152,234.68,234.67,34.04]
[1757650664458,0.71,234.68,234.67,34.04]
[1757650664630,0.71,234.68,234.66,0.03]
[1757650665422,4.97112152,234.68,234.66,0.03]
[1757650666014,0.71,234.67,234.66,0.03]
[1757650667617,4.9713031,234.67,234.66,0.03]
[1757650669744,0.71,234.71,234.66,0.03]
[1757650669945,2.85781038,234.7,234.66,0.03]
[1757650670148,0.71,234.7,234.66,0.03]
[1757650670334,3.6276244,234.73,234.67,0.49]
[1757650670533,0.77,234.73,234.67,0.49]
[1757650672134,0.77,234.73,234.67,4.75128854]
[1757650672435,0.06,234.73,234.68,0.49]
[1757650672639,0.06,234.73,234.69,34.51]
[1757650672939,0.06,234.73,234.69,34.02]
[1757650673357,0.06,234.73,234.7,0.49]
[1757650674257,0.06,234.73,234.7,4.75058063]
[1757650674632,0.06,234.73,234.72,26.0]
[1757650675152,0.06,234.73,234.72,26.49]
[1757650676247,0.06,234.73,234.72,60.49]
[1757650676423,0.06,234.73,234.72,60.0]
[1757650676622,0.06,234.73,234.72,64.26039536]
[1757650676944,0.06,234.73,234.72,60.0]
[1757650677540,0.06,234.73,234.72,26.0]
[1757650677726,0.06,234.73,234.72,64.26039536]
[1757650678046,0.06,234.73,234.72,64.75039536]
[1757650678260,0.06,234.73,234.72,78.34598937]
[1757650679948,0.06,234.73,234.72,59.98]
[1757650680126,0.06,234.73,234.72,26.0]
[1757650680127,0.78,234.73,234.72,26.0]
[1757650680324,0.78,234.73,234.72,59.98]
[1757650680552,0.06,234.73,234.72,59.98]
[1757650683245,0.78,234.73,234.72,26.0]
[1757650683444,0.78,234.73,234.72,59.98]
[1757650683646,0.06,234.73,234.72,59.98]
[1757650685864,0.06,234.73,234.72,60.47]
[1757650686064,0.06,234.73,234.72,78.32598937]
[1757650686442,0.06,234.73,234.72,77.86598937]
[1757650686743,0.06,234.73,234.72,78.33598937]
[1757650688840,0.06,234.73,234.72,52.47815094]
[1757650691047,0.06,234.73,234.72,17.88598937]
[1757650691250,0.06,234.73,234.72,52.33598937]
[1757650691978,0.06,234.73,234.72,52.47815094]
[1757650694979,0.06,234.73,234.72,51.98815094]
[1757650695380,0.06,234.73,234.72,52.47815094]
[1757650695590,0.06,234.73,234.72,17.88598937]
[1757650695880,0.06,234.73,234.72,51.82598937]
[1757650696049,0.06,234.73,234.72,52.31598937]
[1757650697369,0.06,234.73,234.72,51.82598937]
[1757650698568,0.78,234.73,234.72,51.80598937]
[1757650698878,0.78,234.73,234.72,38.21039536]
[1757650699058,0.78,234.73,234.72,33.95]